[Event "Betsys MČR v online bleskovém šachu 2021"]
[Site "Chess.com"]
[Date "2021.04.17"]
[Round "11"]
[White "PaulS_CR"]
[Black "bezzuton"]
[Result "0-1"]
[WhiteElo "1826"]
[BlackElo "1569"]
[TimeControl "180+1"]
[EndTime "10:47:58 PDT"]
[Termination "Uživatel bezzuton zvítězil po vzdání soupeře"]

1. Nf3 {[%clk 0:03:00.9]} 1... e6 {[%clk 0:03:00.8]} 2. c4 {[%clk 0:02:59.2]}
2... d5 {[%clk 0:03:00.8]} 3. e3 {[%clk 0:02:59]} 3... c5 {[%clk 0:02:57.1]} 4.
cxd5 {[%clk 0:02:57.8]} 4... exd5 {[%clk 0:02:56]} 5. d4 {[%clk 0:02:55.7]} 5...
cxd4 {[%clk 0:02:54]} 6. Nxd4 {[%clk 0:02:54.4]} 6... Nc6 {[%clk 0:02:48.2]} 7.
Nc3 {[%clk 0:02:48.2]} 7... Nf6 {[%clk 0:02:44.1]} 8. Bb5 {[%clk 0:02:44.8]}
8... Bd7 {[%clk 0:02:41.8]} 9. O-O {[%clk 0:02:44.2]} 9... Bc5 {[%clk
0:02:37.2]} 10. Nce2 {[%clk 0:02:38.3]} 10... O-O {[%clk 0:02:29.6]} 11. b3
{[%clk 0:02:36.7]} 11... Nxd4 {[%clk 0:02:29.2]} 12. exd4 {[%clk 0:02:28.3]}
12... Bxb5 {[%clk 0:02:23.9]} 13. dxc5 {[%clk 0:02:27]} 13... Ne4 {[%clk
0:02:21.2]} 14. Bb2 {[%clk 0:02:15.8]} 14... Nxc5 {[%clk 0:02:19]} 15. Re1
{[%clk 0:02:01]} 15... Nd3 {[%clk 0:02:16.6]} 16. Bd4 {[%clk 0:02:00.3]} 16...
Nxe1 {[%clk 0:02:15.3]} 17. Qxe1 {[%clk 0:01:56.7]} 17... Re8 {[%clk 0:02:15.5]}
18. Be3 {[%clk 0:01:49]} 18... Bxe2 {[%clk 0:02:13.4]} 19. Qxe2 {[%clk
0:01:48.6]} 19... d4 {[%clk 0:02:09]} 20. Rd1 {[%clk 0:01:48]} 20... Qd5 {[%clk
0:02:07.8]} 21. Qd3 {[%clk 0:01:38.2]} 21... Rad8 {[%clk 0:02:02.1]} 22. Bf4
{[%clk 0:01:28.8]} 22... Qc6 {[%clk 0:01:53.8]} 23. h3 {[%clk 0:01:25.2]} 23...
Qc3 {[%clk 0:01:51.3]} 24. Qb5 {[%clk 0:01:17.6]} 24... d3 {[%clk 0:01:40.9]}
25. Rc1 {[%clk 0:01:10.2]} 25... Qxc1+ {[%clk 0:01:38.9]} 26. Bxc1 {[%clk
0:01:08.6]} 26... Re1+ {[%clk 0:01:38.7]} 27. Kh2 {[%clk 0:01:08.1]} 27... Rxc1
{[%clk 0:01:37.8]} 28. Qg5 {[%clk 0:01:04.2]} 28... Rcc8 {[%clk 0:01:34.5]} 29.
Qd2 {[%clk 0:01:02.8]} 29... h6 {[%clk 0:01:32.7]} 30. h4 {[%clk 0:00:56.1]}
30... b6 {[%clk 0:01:32]} 31. h5 {[%clk 0:00:54.2]} 31... Rc5 {[%clk 0:01:30.1]}
32. g4 {[%clk 0:00:49.3]} 32... Rc2 {[%clk 0:01:25.2]} 0-1

[Event "Betsys MČR v online bleskovém šachu 2021"]
[Site "Chess.com"]
[Date "2021.04.17"]
[Round "11"]
[White "Kijonker"]
[Black "Petr_Zacek"]
[Result "0-1"]
[WhiteElo "1471"]
[BlackElo "1741"]
[TimeControl "180+1"]
[EndTime "10:48:01 PDT"]
[Termination "Uživatel Petr_Zacek zvítězil po vzdání soupeře"]

1. e4 {[%clk 0:03:00.9]} 1... e6 {[%clk 0:03:00]} 2. Nf3 {[%clk 0:02:59.9]} 2...
d5 {[%clk 0:02:59.3]} 3. Nc3 {[%clk 0:02:59.4]} 3... c5 {[%clk 0:02:56.5]} 4. d3
{[%clk 0:02:52.2]} 4... Nc6 {[%clk 0:02:56]} 5. Bg5 {[%clk 0:02:38.7]} 5... Be7
{[%clk 0:02:54.3]} 6. Bf4 {[%clk 0:02:36.4]} 6... Nf6 {[%clk 0:02:50.6]} 7. Nb5
{[%clk 0:02:24.8]} 7... Qa5+ {[%clk 0:02:35.7]} 8. Nc3 {[%clk 0:01:56.9]} 8...
d4 {[%clk 0:02:34.9]} 9. Bd2 {[%clk 0:01:54.6]} 9... dxc3 {[%clk 0:02:34]} 10.
Bxc3 {[%clk 0:01:54.1]} 10... Qc7 {[%clk 0:02:31.8]} 11. Be2 {[%clk 0:01:51.3]}
11... O-O {[%clk 0:02:31.5]} 12. h3 {[%clk 0:01:41.6]} 12... e5 {[%clk
0:02:31.4]} 13. O-O {[%clk 0:01:27.9]} 13... Nd4 {[%clk 0:02:30.4]} 14. Nxd4
{[%clk 0:01:24.1]} 14... cxd4 {[%clk 0:02:28.2]} 15. Bd2 {[%clk 0:01:24]} 15...
Be6 {[%clk 0:02:26.3]} 16. f4 {[%clk 0:01:22.6]} 16... exf4 {[%clk 0:02:23.2]}
17. Bxf4 {[%clk 0:01:22.1]} 17... Bd6 {[%clk 0:02:20.1]} 18. Bxd6 {[%clk
0:01:18.5]} 18... Qxd6 {[%clk 0:02:18.9]} 19. Bf3 {[%clk 0:01:17.7]} 19... Qg3
{[%clk 0:02:16.8]} 20. Kh1 {[%clk 0:01:14.8]} 20... h6 {[%clk 0:02:13.7]} 21.
Qe2 {[%clk 0:00:56.2]} 21... Rac8 {[%clk 0:02:11.6]} 22. e5 {[%clk 0:00:55.2]}
22... Nd5 {[%clk 0:02:10.7]} 23. Be4 {[%clk 0:00:41.8]} 23... Ne3 {[%clk
0:01:59.3]} 24. Rf3 {[%clk 0:00:33.6]} 24... Qg5 {[%clk 0:01:55]} 25. Rg1 {[%clk
0:00:07.3]} 25... Rxc2 {[%clk 0:01:52.2]} 26. Qe1 {[%clk 0:00:06.8]} 26... Rxg2
{[%clk 0:01:47]} 0-1

[Event "Betsys MČR v online bleskovém šachu 2021"]
[Site "Chess.com"]
[Date "2021.04.17"]
[Round "11"]
[White "terezkai"]
[Black "dzerenyss"]
[Result "0-1"]
[WhiteElo "811"]
[BlackElo "1026"]
[TimeControl "180+1"]
[EndTime "10:48:05 PDT"]
[Termination "Uživatel dzerenyss zvítězil na čas"]

1. e4 {[%clk 0:02:46.3]} 1... c5 {[%clk 0:02:58.7]} 2. Bc4 {[%clk 0:02:42.6]}
2... d6 {[%clk 0:02:56.3]} 3. d4 {[%clk 0:02:34.1]} 3... Nf6 {[%clk 0:02:55.6]}
4. dxc5 {[%clk 0:02:31.6]} 4... dxc5 {[%clk 0:02:47.6]} 5. Nd2 {[%clk
0:02:29.8]} 5... b6 {[%clk 0:02:41.2]} 6. Ngf3 {[%clk 0:02:18.6]} 6... Bb7
{[%clk 0:02:39.6]} 7. Qe2 {[%clk 0:01:58.7]} 7... e6 {[%clk 0:02:30.7]} 8. b3
{[%clk 0:01:51.1]} 8... Be7 {[%clk 0:02:17.6]} 9. Bb2 {[%clk 0:01:45.6]} 9...
O-O {[%clk 0:02:15.5]} 10. O-O-O {[%clk 0:01:41.9]} 10... Nc6 {[%clk 0:02:11.6]}
11. Ne5 {[%clk 0:01:07.4]} 11... Nxe5 {[%clk 0:02:06]} 12. Bxe5 {[%clk
0:01:06.9]} 12... Qc8 {[%clk 0:01:54]} 13. Bxf6 {[%clk 0:00:44.6]} 13... Bxf6
{[%clk 0:01:52.8]} 14. Nf3 {[%clk 0:00:40.6]} 14... Rd8 {[%clk 0:01:46.1]} 15.
h4 {[%clk 0:00:17.9]} 15... Qc6 {[%clk 0:01:42.9]} 16. Rxd8+ {[%clk 0:00:11.8]}
16... Rxd8 {[%clk 0:01:41.1]} 17. Rd1 {[%clk 0:00:10.7]} 17... Rxd1+ {[%clk
0:01:39.3]} 18. Qxd1 {[%clk 0:00:10]} 18... Qxe4 {[%clk 0:01:37.1]} 19. Qd8+
{[%clk 0:00:07.4]} 19... Bxd8 {[%clk 0:01:35.8]} 20. Ng5 {[%clk 0:00:04.2]}
20... Qf4+ {[%clk 0:01:32.8]} 0-1

[Event "Betsys MČR v online bleskovém šachu 2021"]
[Site "Chess.com"]
[Date "2021.04.17"]
[Round "11"]
[White "doktorovak"]
[Black "hever99"]
[Result "1-0"]
[WhiteElo "1685"]
[BlackElo "1939"]
[TimeControl "180+1"]
[EndTime "10:48:07 PDT"]
[Termination "Uživatel doktorovak zvítězil po vzdání soupeře"]

1. e4 {[%clk 0:03:00.9]} 1... c5 {[%clk 0:02:59.9]} 2. Nf3 {[%clk 0:03:00.8]}
2... d6 {[%clk 0:03:00.1]} 3. Bc4 {[%clk 0:03:00.5]} 3... Nc6 {[%clk 0:02:57.3]}
4. O-O {[%clk 0:02:59.7]} 4... e6 {[%clk 0:02:57.4]} 5. a3 {[%clk 0:02:58.3]}
5... a6 {[%clk 0:02:57.1]} 6. c3 {[%clk 0:02:58]} 6... b5 {[%clk 0:02:56.3]} 7.
Ba2 {[%clk 0:02:58]} 7... Nf6 {[%clk 0:02:53.3]} 8. d3 {[%clk 0:02:57.6]} 8...
d5 {[%clk 0:02:51.1]} 9. exd5 {[%clk 0:02:56.1]} 9... exd5 {[%clk 0:02:51.3]}
10. Bg5 {[%clk 0:02:55.8]} 10... Be7 {[%clk 0:02:48.2]} 11. Re1 {[%clk
0:02:55.7]} 11... O-O {[%clk 0:02:48]} 12. Nbd2 {[%clk 0:02:55.8]} 12... Bf5
{[%clk 0:02:35.5]} 13. d4 {[%clk 0:02:49.3]} 13... c4 {[%clk 0:02:31.9]} 14. Bb1
{[%clk 0:02:48.5]} 14... Bxb1 {[%clk 0:02:29.7]} 15. Rxb1 {[%clk 0:02:48.6]}
15... h6 {[%clk 0:02:27]} 16. Bh4 {[%clk 0:02:47.9]} 16... Re8 {[%clk
0:02:24.2]} 17. Ne5 {[%clk 0:02:43.9]} 17... Nxe5 {[%clk 0:02:03.1]} 18. dxe5
{[%clk 0:02:43.9]} 18... Nd7 {[%clk 0:01:36]} 19. Bxe7 {[%clk 0:02:42.7]} 19...
Rxe7 {[%clk 0:01:33.1]} 20. f4 {[%clk 0:02:42.4]} 20... Qb6+ {[%clk 0:01:25.4]}
21. Kh1 {[%clk 0:02:41.4]} 21... Nc5 {[%clk 0:01:24]} 22. Rf1 {[%clk 0:02:25]}
22... Nd3 {[%clk 0:01:21.4]} 23. Qf3 {[%clk 0:02:23]} 23... Rd8 {[%clk 0:01:15]}
24. h3 {[%clk 0:02:22.9]} 24... a5 {[%clk 0:01:02.4]} 25. Kh2 {[%clk 0:02:22.2]}
25... b4 {[%clk 0:00:57.5]} 26. axb4 {[%clk 0:02:18.6]} 26... axb4 {[%clk
0:00:57.5]} 27. Qg3 {[%clk 0:02:03.8]} 27... d4 {[%clk 0:00:46.1]} 28. Nxc4
{[%clk 0:01:59.2]} 28... Qc5 {[%clk 0:00:41.1]} 29. Nd6 {[%clk 0:01:58.3]} 29...
Nxe5 {[%clk 0:00:28.3]} 30. fxe5 {[%clk 0:01:53.9]} 30... Qxe5 {[%clk
0:00:27.1]} 31. Qxe5 {[%clk 0:01:51.6]} 31... Rxe5 {[%clk 0:00:27.1]} 32. Nxf7
{[%clk 0:01:48.3]} 32... Ree8 {[%clk 0:00:23.4]} 33. Nxd8 {[%clk 0:01:47.9]}
33... Rxd8 {[%clk 0:00:23.8]} 34. cxd4 {[%clk 0:01:48.3]} 34... Rxd4 {[%clk
0:00:23.7]} 35. b3 {[%clk 0:01:47.4]} 35... Rd3 {[%clk 0:00:23.5]} 36. Rf4
{[%clk 0:01:46.8]} 1-0

[Event "Betsys MČR v online bleskovém šachu 2021"]
[Site "Chess.com"]
[Date "2021.04.17"]
[Round "11"]
[White "NeumanPetr"]
[Black "Gicko13"]
[Result "1-0"]
[WhiteElo "2470"]
[BlackElo "2134"]
[TimeControl "180+1"]
[EndTime "10:48:13 PDT"]
[Termination "Uživatel NeumanPetr zvítězil matem"]

1. d4 {[%clk 0:03:00.9]} 1... d5 {[%clk 0:02:58.2]} 2. c4 {[%clk 0:03:01.4]}
2... e6 {[%clk 0:02:57.9]} 3. Nc3 {[%clk 0:03:01.9]} 3... Nf6 {[%clk 0:02:57.4]}
4. cxd5 {[%clk 0:03:01.6]} 4... exd5 {[%clk 0:02:58.3]} 5. Bg5 {[%clk
0:03:01.8]} 5... Be7 {[%clk 0:02:58.6]} 6. e3 {[%clk 0:03:01.5]} 6... O-O {[%clk
0:02:58.7]} 7. Qc2 {[%clk 0:03:01.6]} 7... c6 {[%clk 0:02:57.8]} 8. Bd3 {[%clk
0:03:01]} 8... Nbd7 {[%clk 0:02:57.7]} 9. Nge2 {[%clk 0:03:00.3]} 9... Re8
{[%clk 0:02:57.5]} 10. O-O {[%clk 0:03:00.4]} 10... Nf8 {[%clk 0:02:55.6]} 11.
Rab1 {[%clk 0:02:59.7]} 11... a5 {[%clk 0:02:50.2]} 12. f3 {[%clk 0:02:57.1]}
12... b5 {[%clk 0:02:06.5]} 13. Rbd1 {[%clk 0:02:51.3]} 13... Ba6 {[%clk
0:02:03.2]} 14. e4 {[%clk 0:02:45.7]} 14... dxe4 {[%clk 0:01:45.2]} 15. fxe4
{[%clk 0:02:45]} 15... Ne6 {[%clk 0:01:44.9]} 16. Bxf6 {[%clk 0:02:43.5]} 16...
Bxf6 {[%clk 0:01:44.2]} 17. e5 {[%clk 0:02:41.1]} 17... Bg5 {[%clk 0:01:35.6]}
18. Bxh7+ {[%clk 0:02:38.6]} 18... Kh8 {[%clk 0:01:35.5]} 19. Bf5 {[%clk
0:02:19.9]} 19... b4 {[%clk 0:01:23.3]} 20. Ne4 {[%clk 0:02:15.8]} 20... Nxd4
{[%clk 0:01:12]} 21. Nxd4 {[%clk 0:02:05.5]} 21... Be3+ {[%clk 0:01:10.8]} 22.
Kh1 {[%clk 0:02:05.6]} 22... Bxd4 {[%clk 0:01:10.9]} 23. Nd6 {[%clk 0:02:04.5]}
23... Qe7 {[%clk 0:00:35.6]} 24. Rfe1 {[%clk 0:01:39.5]} 24... c5 {[%clk
0:00:22.7]} 25. Qb3 {[%clk 0:01:21.4]} 25... Rf8 {[%clk 0:00:18.5]} 26. Qh3+
{[%clk 0:01:20.8]} 26... Kg8 {[%clk 0:00:16.9]} 27. Qh7# {[%clk 0:01:20.3]} 1-0

[Event "Betsys MČR v online bleskovém šachu 2021"]
[Site "Chess.com"]
[Date "2021.04.17"]
[Round "11"]
[White "EXTREME_STRATEGY007"]
[Black "trosecnik"]
[Result "0-1"]
[WhiteElo "1338"]
[BlackElo "1829"]
[TimeControl "180+1"]
[EndTime "10:48:17 PDT"]
[Termination "Uživatel trosecnik zvítězil na čas"]

1. e4 {[%clk 0:03:00.9]} 1... c5 {[%clk 0:02:58.6]} 2. Nf3 {[%clk 0:02:59.2]}
2... Nc6 {[%clk 0:02:59.2]} 3. d4 {[%clk 0:02:53.1]} 3... cxd4 {[%clk
0:03:00.1]} 4. Nxd4 {[%clk 0:02:51.4]} 4... Nf6 {[%clk 0:03:00.7]} 5. Nc3 {[%clk
0:02:49.6]} 5... e6 {[%clk 0:03:00.5]} 6. Bb5 {[%clk 0:02:45.3]} 6... Bb4 {[%clk
0:02:55.1]} 7. Be3 {[%clk 0:02:35.4]} 7... Nxe4 {[%clk 0:02:51.2]} 8. Bxc6
{[%clk 0:02:32.4]} 8... bxc6 {[%clk 0:02:52.1]} 9. O-O {[%clk 0:02:30.7]} 9...
Nxc3 {[%clk 0:02:44.9]} 10. bxc3 {[%clk 0:02:28.9]} 10... Bxc3 {[%clk
0:02:38.6]} 11. Rb1 {[%clk 0:02:24.8]} 11... Ba6 {[%clk 0:02:38.8]} 12. Ne2
{[%clk 0:02:10.8]} 12... Qf6 {[%clk 0:02:27.7]} 13. Rb3 {[%clk 0:02:02.2]} 13...
Be5 {[%clk 0:02:19.8]} 14. Re1 {[%clk 0:01:32.3]} 14... Bxe2 {[%clk 0:02:14.5]}
15. Qxe2 {[%clk 0:01:29.4]} 15... O-O {[%clk 0:02:09.7]} 16. Bxa7 {[%clk
0:01:24.7]} 16... Rxa7 {[%clk 0:02:06.7]} 17. Qxe5 {[%clk 0:01:22.8]} 17... Qxe5
{[%clk 0:02:06.1]} 18. Rxe5 {[%clk 0:01:22.6]} 18... Rxa2 {[%clk 0:02:07]} 19.
h3 {[%clk 0:01:11]} 19... Rxc2 {[%clk 0:02:06.1]} 20. Rb7 {[%clk 0:01:08.2]}
20... d5 {[%clk 0:02:05.5]} 21. Re3 {[%clk 0:01:04.8]} 21... c5 {[%clk
0:02:02.5]} 22. Rc7 {[%clk 0:01:02.4]} 22... g6 {[%clk 0:02:01.5]} 23. Ra3
{[%clk 0:00:47.8]} 23... Rc1+ {[%clk 0:02:01.3]} 24. Kh2 {[%clk 0:00:46.2]}
24... c4 {[%clk 0:02:01.3]} 25. Kg3 {[%clk 0:00:42.2]} 25... Rb1 {[%clk
0:01:52.5]} 26. Rd7 {[%clk 0:00:37.1]} 26... Rfb8 {[%clk 0:01:44.6]} 27. Kf4
{[%clk 0:00:20.4]} 27... R1b7 {[%clk 0:01:40.9]} 28. Rd6 {[%clk 0:00:10.5]}
28... Kf8 {[%clk 0:01:39.2]} 0-1

[Event "Betsys MČR v online bleskovém šachu 2021"]
[Site "Chess.com"]
[Date "2021.04.17"]
[Round "11"]
[White "ghostdog777"]
[Black "SayQueen"]
[Result "0-1"]
[WhiteElo "2069"]
[BlackElo "2024"]
[TimeControl "180+1"]
[EndTime "10:48:19 PDT"]
[Termination "Uživatel SayQueen zvítězil na čas"]

1. e4 {[%clk 0:03:00.9]} 1... e5 {[%clk 0:02:59.2]} 2. Nf3 {[%clk 0:02:56.6]}
2... Nc6 {[%clk 0:02:58.6]} 3. d4 {[%clk 0:02:56.8]} 3... exd4 {[%clk
0:02:57.6]} 4. Nxd4 {[%clk 0:02:56.8]} 4... Nf6 {[%clk 0:02:53.4]} 5. Nxc6
{[%clk 0:02:56.1]} 5... bxc6 {[%clk 0:02:52]} 6. e5 {[%clk 0:02:57]} 6... Qe7
{[%clk 0:02:51.9]} 7. Qe2 {[%clk 0:02:57.2]} 7... Nd5 {[%clk 0:02:51.6]} 8. c4
{[%clk 0:02:57.8]} 8... Ba6 {[%clk 0:02:48.5]} 9. b3 {[%clk 0:02:58.3]} 9... Qh4
{[%clk 0:02:47.4]} 10. a3 {[%clk 0:02:05.6]} 10... Nf4 {[%clk 0:02:43.6]} 11.
Qe4 {[%clk 0:01:09.2]} 11... Ng6 {[%clk 0:02:42.9]} 12. Qxh4 {[%clk 0:01:03.2]}
12... Nxh4 {[%clk 0:02:42.9]} 13. g3 {[%clk 0:00:59.5]} 13... Nf3+ {[%clk
0:02:39.4]} 14. Ke2 {[%clk 0:00:55.8]} 14... Nxe5 {[%clk 0:02:38.5]} 15. Bb2
{[%clk 0:00:54.4]} 15... f6 {[%clk 0:02:34.8]} 16. f4 {[%clk 0:00:51.9]} 16...
Nf7 {[%clk 0:02:27.8]} 17. Nd2 {[%clk 0:00:43.5]} 17... d5 {[%clk 0:02:24.4]}
18. Bg2 {[%clk 0:00:40.6]} 18... O-O-O {[%clk 0:02:22.1]} 19. Rhd1 {[%clk
0:00:29.9]} 19... Bc5 {[%clk 0:02:18]} 20. b4 {[%clk 0:00:27.6]} 20... Rhe8+
{[%clk 0:02:12.8]} 21. Kf1 {[%clk 0:00:27.2]} 21... Be3 {[%clk 0:02:10.9]} 22.
b5 {[%clk 0:00:22.9]} 22... cxb5 {[%clk 0:02:08.5]} 23. Bxd5 {[%clk 0:00:22.6]}
23... Nd6 {[%clk 0:02:04]} 24. Bc6 {[%clk 0:00:16.3]} 24... Re7 {[%clk
0:01:58.1]} 25. cxb5 {[%clk 0:00:10.5]} 25... Nxb5 {[%clk 0:01:52]} 26. Nc4
{[%clk 0:00:09.9]} 26... Nd6 {[%clk 0:01:45.4]} 27. Rxd6 {[%clk 0:00:07.2]}
27... Rxd6 {[%clk 0:01:42.4]} 28. Bf3 {[%clk 0:00:03.2]} 28... Bxc4+ {[%clk
0:01:39.9]} 29. Kg2 {[%clk 0:00:04.1]} 29... Rd2+ {[%clk 0:01:39.2]} 0-1

[Event "Betsys MČR v online bleskovém šachu 2021"]
[Site "Chess.com"]
[Date "2021.04.17"]
[Round "11"]
[White "Mikkes33"]
[Black "Mimochodem"]
[Result "0-1"]
[WhiteElo "1545"]
[BlackElo "1796"]
[TimeControl "180+1"]
[EndTime "10:48:19 PDT"]
[Termination "Uživatel Mimochodem zvítězil na čas"]

1. e4 {[%clk 0:02:57.4]} 1... e5 {[%clk 0:02:58.1]} 2. Nf3 {[%clk 0:02:56.7]}
2... Nc6 {[%clk 0:02:58.4]} 3. Bb5 {[%clk 0:02:56]} 3... d6 {[%clk 0:02:58.5]}
4. O-O {[%clk 0:02:53.9]} 4... Bg4 {[%clk 0:02:58.6]} 5. Re1 {[%clk 0:02:46.1]}
5... Nf6 {[%clk 0:02:57.5]} 6. h3 {[%clk 0:02:44.4]} 6... Bh5 {[%clk 0:02:55.8]}
7. d3 {[%clk 0:02:33.5]} 7... Be7 {[%clk 0:02:55.4]} 8. c3 {[%clk 0:02:28.5]}
8... O-O {[%clk 0:02:54.7]} 9. Nbd2 {[%clk 0:02:26.9]} 9... a6 {[%clk
0:02:53.4]} 10. Ba4 {[%clk 0:02:24]} 10... b5 {[%clk 0:02:52.8]} 11. Bb3 {[%clk
0:02:23]} 11... Na5 {[%clk 0:02:52.5]} 12. Bc2 {[%clk 0:02:22.8]} 12... c5
{[%clk 0:02:51.7]} 13. a4 {[%clk 0:02:21.4]} 13... Nc6 {[%clk 0:02:50]} 14. axb5
{[%clk 0:02:18.8]} 14... axb5 {[%clk 0:02:50.4]} 15. Rxa8 {[%clk 0:02:18.4]}
15... Qxa8 {[%clk 0:02:51]} 16. Nf1 {[%clk 0:02:14.6]} 16... b4 {[%clk
0:02:47.4]} 17. Ng3 {[%clk 0:02:11.3]} 17... Bxf3 {[%clk 0:02:44.8]} 18. Qxf3
{[%clk 0:02:07.8]} 18... bxc3 {[%clk 0:02:44.9]} 19. bxc3 {[%clk 0:02:07]} 19...
Qa2 {[%clk 0:02:44.5]} 20. Qd1 {[%clk 0:01:46.9]} 20... c4 {[%clk 0:02:39.8]}
21. d4 {[%clk 0:01:29.2]} 21... exd4 {[%clk 0:02:34.9]} 22. cxd4 {[%clk
0:01:27.5]} 22... c3 {[%clk 0:02:31]} 23. Bb3 {[%clk 0:01:15.8]} 23... Qa5
{[%clk 0:02:24.5]} 24. e5 {[%clk 0:01:07.7]} 24... dxe5 {[%clk 0:02:20]} 25.
dxe5 {[%clk 0:01:06.2]} 25... Nxe5 {[%clk 0:02:20.2]} 26. Qd4 {[%clk 0:00:51.7]}
26... Ng6 {[%clk 0:02:17.3]} 27. Ne4 {[%clk 0:00:24]} 27... c2 {[%clk
0:02:05.3]} 28. Nxf6+ {[%clk 0:00:19.1]} 28... Bxf6 {[%clk 0:02:03.8]} 29. Qe4
{[%clk 0:00:12.3]} 29... h6 {[%clk 0:01:55.3]} 30. Bxc2 {[%clk 0:00:11.1]} 30...
Qc3 {[%clk 0:01:53.4]} 31. Be3 {[%clk 0:00:04.4]} 31... Qxe1+ {[%clk 0:01:45.2]}
0-1

[Event "Betsys MČR v online bleskovém šachu 2021"]
[Site "Chess.com"]
[Date "2021.04.17"]
[Round "11"]
[White "VojtaT"]
[Black "Klokan64"]
[Result "0-1"]
[WhiteElo "1719"]
[BlackElo "1443"]
[TimeControl "180+1"]
[EndTime "10:48:19 PDT"]
[Termination "Uživatel Klokan64 zvítězil po vzdání soupeře"]

1. e4 {[%clk 0:03:00.9]} 1... d6 {[%clk 0:02:59.2]} 2. d4 {[%clk 0:02:57.3]}
2... Nf6 {[%clk 0:02:58.6]} 3. Nc3 {[%clk 0:02:56.6]} 3... c6 {[%clk 0:02:58.4]}
4. Nf3 {[%clk 0:02:56.7]} 4... Bg4 {[%clk 0:02:58.2]} 5. Be2 {[%clk 0:02:56.2]}
5... e6 {[%clk 0:02:57.4]} 6. O-O {[%clk 0:02:56]} 6... Be7 {[%clk 0:02:56.9]}
7. Be3 {[%clk 0:02:53.9]} 7... O-O {[%clk 0:02:55.9]} 8. Qd2 {[%clk 0:02:52.8]}
8... Re8 {[%clk 0:02:54.7]} 9. Rad1 {[%clk 0:02:42.4]} 9... d5 {[%clk
0:02:53.9]} 10. e5 {[%clk 0:02:30.7]} 10... Nfd7 {[%clk 0:02:53.5]} 11. h3
{[%clk 0:02:19.7]} 11... Bh5 {[%clk 0:02:52.6]} 12. Nh2 {[%clk 0:02:16.8]} 12...
Bxe2 {[%clk 0:02:52.1]} 13. Qxe2 {[%clk 0:02:17.4]} 13... c5 {[%clk 0:02:52.3]}
14. f4 {[%clk 0:02:04.1]} 14... Nc6 {[%clk 0:02:50.5]} 15. f5 {[%clk 0:01:52.2]}
15... cxd4 {[%clk 0:02:38.2]} 16. fxe6 {[%clk 0:01:09.5]} 16... fxe6 {[%clk
0:02:24.1]} 17. Bc1 {[%clk 0:00:34.3]} 17... dxc3 {[%clk 0:02:18.7]} 18. Qg4
{[%clk 0:00:34.8]} 18... Ncxe5 {[%clk 0:01:46.5]} 19. Qxe6+ {[%clk 0:00:33.9]}
19... Kh8 {[%clk 0:01:44.7]} 20. Qf5 {[%clk 0:00:18]} 20... Bc5+ {[%clk
0:01:38.7]} 21. Kh1 {[%clk 0:00:18.2]} 21... Rf8 {[%clk 0:01:32.6]} 22. Qg5
{[%clk 0:00:13.1]} 22... Qxg5 {[%clk 0:01:30.5]} 23. Bxg5 {[%clk 0:00:11.6]}
23... Rxf1+ {[%clk 0:01:29.7]} 24. Rxf1 {[%clk 0:00:11.3]} 24... cxb2 {[%clk
0:01:27.1]} 25. Rb1 {[%clk 0:00:10.9]} 25... Bd4 {[%clk 0:01:24.4]} 0-1

[Event "Betsys MČR v online bleskovém šachu 2021"]
[Site "Chess.com"]
[Date "2021.04.17"]
[Round "11"]
[White "ZdenekRomanek"]
[Black "krajic001"]
[Result "1-0"]
[WhiteElo "1563"]
[BlackElo "1175"]
[TimeControl "180+1"]
[EndTime "10:48:20 PDT"]
[Termination "Uživatel ZdenekRomanek zvítězil po vzdání soupeře"]

1. d4 {[%clk 0:03:00.9]} 1... Nf6 {[%clk 0:02:55.6]} 2. c4 {[%clk 0:03:00.2]}
2... e5 {[%clk 0:02:53.2]} 3. dxe5 {[%clk 0:02:59]} 3... Ng4 {[%clk 0:02:52.1]}
4. Bf4 {[%clk 0:02:57.6]} 4... Nc6 {[%clk 0:02:34.7]} 5. Nf3 {[%clk 0:02:56.3]}
5... Bb4+ {[%clk 0:02:31.3]} 6. Nc3 {[%clk 0:02:55]} 6... Qe7 {[%clk 0:02:27.9]}
7. Qd5 {[%clk 0:02:53.8]} 7... Bc5 {[%clk 0:02:09]} 8. e3 {[%clk 0:02:42]} 8...
Nb4 {[%clk 0:02:03.6]} 9. Qd2 {[%clk 0:02:28]} 9... Nc6 {[%clk 0:01:58.4]} 10.
Qd5 {[%clk 0:02:04.5]} 10... Nb4 {[%clk 0:01:46.3]} 11. Qd1 {[%clk 0:01:58.8]}
11... Nc6 {[%clk 0:01:22.7]} 12. Nd5 {[%clk 0:01:57.8]} 12... Bb4+ {[%clk
0:01:07.7]} 13. Ke2 {[%clk 0:01:52.5]} 13... Qd8 {[%clk 0:00:48.8]} 14. Nxb4
{[%clk 0:01:47.8]} 14... Nxb4 {[%clk 0:00:47.9]} 15. Qb3 {[%clk 0:01:41.6]}
15... a5 {[%clk 0:00:42.2]} 16. h3 {[%clk 0:01:37.6]} 16... Nh6 {[%clk
0:00:34.1]} 17. g4 {[%clk 0:01:32.2]} 17... O-O {[%clk 0:00:19.8]} 18. Rd1
{[%clk 0:01:24.9]} 18... Nc6 {[%clk 0:00:15.2]} 19. Bg2 {[%clk 0:01:20.2]} 19...
d6 {[%clk 0:00:14.6]} 20. exd6 {[%clk 0:01:14.6]} 20... cxd6 {[%clk 0:00:13.4]}
21. Rxd6 {[%clk 0:01:11.2]} 1-0